lending/lending_fUSD_20251111
["ID","MTS","AMOUNT","RATE_DAILY","PERIOD"]
[393635090,1762869719865,-151.0,0.00039913,120]
[393635091,1762869719896,-506.12202,0.00039913,120]
[393635092,1762869719926,-181.926442,0.00039913,120]
[393635093,1762869719958,-506.12202,0.00039913,120]
[393635094,1762869719988,-151.0,0.00039913,120]
[393635095,1762869720020,-181.926442,0.00039913,120]
[393635096,1762869720049,-151.0,0.00039913,120]
[393635097,1762869720080,-506.12202,0.00039913,120]
[393635098,1762869720116,-181.926442,0.00039913,120]
[393635099,1762869720149,-151.0,0.00039913,120]
[393635100,1762869720184,-506.12202,0.00039913,120]
[393635101,1762869720219,-181.926442,0.00039913,120]
[393635102,1762869720253,-506.12202,0.00039913,120]
[393635103,1762869720285,-151.0,0.00039913,120]
[393635104,1762869720317,-181.926442,0.00039913,120]
[393635105,1762869720348,-506.122014,0.00039913,120]
[393635106,1762869720378,-151.0,0.00039913,120]
[393635107,1762869720410,-181.926442,0.00039913,120]
[393635108,1762869720441,-151.0,0.00039913,120]
[393635109,1762869720472,-181.926442,0.00039913,120]
[393635110,1762869720502,-151.0,0.00039913,120]
[393635111,1762869720532,-151.0,0.00039913,120]
[393635112,1762869720563,-181.926442,0.00039913,120]
[393635113,1762869720594,-151.0,0.00039913,120]
[393635114,1762869720626,-181.926442,0.00039913,120]
[393635115,1762869720655,-151.0,0.00039913,120]
[393635116,1762869720685,-151.0,0.00039913,120]
[393635117,1762869720714,-151.0,0.00039913,120]
[393635118,1762869720742,-151.0,0.00039913,120]
[393635119,1762869720770,-181.926442,0.00039913,120]
[393635120,1762869720798,-151.0,0.00039913,120]
[393635121,1762869720825,-151.0,0.00039913,120]
[393635122,1762869720855,-151.0,0.00039913,120]
[393635123,1762869720886,-181.926442,0.00039913,120]
[393635124,1762869720914,-163.203211,0.00039913,120]
[393635125,1762869720943,-151.0,0.00039913,120]
[393635126,1762869720976,-151.0,0.00039913,120]
[393635127,1762869721005,-181.926442,0.00039913,120]
[393635128,1762869721037,-151.0,0.00039913,120]
[393635129,1762869721067,-262.249257,0.00039913,120]
[393635130,1762869721096,-181.926442,0.00039913,120]
[393635131,1762869721124,-151.0,0.00039913,120]
[393635132,1762869721152,-151.0,0.00039913,120]
[393635133,1762869721182,-181.926442,0.00039913,120]
[393635134,1762869721213,-151.0,0.00039913,120]
[393635135,1762869721243,-151.0,0.00039913,120]
[393635136,1762869721272,-181.926442,0.00039913,120]
[393635137,1762869721302,-162.215837,0.00039913,120]
[393635138,1762869721331,-151.0,0.00039913,120]
[393635139,1762869721362,-181.926442,0.00039913,120]
[393635140,1762869721391,-151.0,0.00039913,120]
[393635141,1762869721421,-181.926442,0.00039913,120]
[393635142,1762869721452,-151.0,0.00039913,120]
[393635143,1762869721483,-181.926433,0.00039913,120]
[393635144,1762869721513,-151.0,0.00039913,120]
[393635145,1762869721543,-151.0,0.00039913,120]
[393635146,1762869721574,-151.0,0.00039913,120]
[393635147,1762869721605,-161.288768,0.00039913,120]
[393635148,1762869721635,-151.0,0.00039913,120]
[393635149,1762869721666,-151.0,0.00039913,120]
[393635150,1762869721696,-151.0,0.00039913,120]
[393635151,1762869721726,-848.085751,0.00039913,120]
[393635152,1762869721756,-151.0,0.00039913,120]
[393635153,1762869721786,-848.085751,0.00039913,120]
[393635154,1762869721814,-151.0,0.00039913,120]
[393635155,1762869721843,-848.085751,0.00039913,120]
[393635156,1762869721871,-848.085751,0.00039913,120]
[393635157,1762869721899,-151.0,0.00039913,120]
[393635158,1762869721928,-848.085751,0.00039913,120]
[393635159,1762869721961,-159.794722,0.00039913,120]
[393635160,1762869721989,-255.30957,0.00039913,120]
[393635161,1762869722019,-848.085751,0.00039913,120]
[393635162,1762869722048,-848.085751,0.00039913,120]
[393635163,1762869722076,-848.085751,0.00039913,120]
[393635164,1762869722103,-848.085751,0.00039913,120]
[393635165,1762869722131,-848.085751,0.00039913,120]
[393635166,1762869722158,-848.085751,0.00039913,120]
[393635167,1762869722187,-848.085751,0.00039913,120]
[393635168,1762869722214,-848.085751,0.00039913,120]
[393635169,1762869722240,-848.085751,0.00039913,120]
[393635170,1762869722267,-153.190288,0.00039913,120]
[393635171,1762869722294,-848.085751,0.00039913,120]
[393635172,1762869722321,-848.085751,0.00039913,120]
[393635173,1762869722349,-848.085751,0.00039913,120]
[393635174,1762869722377,-848.085751,0.00039913,120]
[393635175,1762869722408,-848.085751,0.00039913,120]
[393635176,1762869722440,-848.085759,0.00039913,120]
[393635177,1762869722470,-151.0,0.00039913,95]
[393635178,1762869722498,-151.0,0.00039913,95]
[393635179,1762869722527,-151.0,0.00039913,95]
[393635180,1762869722556,-151.0,0.00039913,95]
[393635181,1762869722585,-151.0,0.00039913,95]
[393635182,1762869722614,-151.0,0.00039913,95]
[393635183,1762869722643,-151.0,0.00039913,95]
[393635184,1762869722672,-151.0,0.00039913,95]
[393635185,1762869722831,-151.0,0.00039913,95]
[393635186,1762869722860,-151.0,0.00039913,95]
[393635187,1762869722890,-151.0,0.00039913,95]
[393635188,1762869722919,-151.0,0.00039913,95]
[393635189,1762869722950,-151.0,0.00039913,95]
[393635190,1762869722984,-273.360903,0.00039913,95]
[393635191,1762869723013,-151.0,0.00039913,120]
[393635192,1762869723042,-153.610227,0.00039913,120]
[393635193,1762869723071,-675.1654159,0.00039975,120]
[393635194,1762869723101,-150.077011,0.00039978,45]
[393635195,1762869723129,-158.366163,0.00039978,45]
[393635196,1762869723158,-151.44337,0.00039978,45]
[393635197,1762869723187,-1197.50307316,0.00039979,30]
[393635198,1762869723214,-445.0,0.00039986,90]
[393635199,1762869723243,-150.077011,0.00039989,45]
[393635200,1762869723270,-163.60028,0.00039989,45]
[393635201,1762869723299,-165.740319,0.00039989,45]
[393635202,1762869723326,-158.366163,0.00039989,45]
[393635203,1762869723355,-151.44337,0.00039989,45]
[393635204,1762869723385,-1008.26056406,0.00039999,30]
[393635205,1762869723419,-451.563371,0.00039999,31]
[393635206,1762869723452,-424.444258,0.00039999,31]
[393635207,1762869723483,-500.0,0.00039999,31]
[393635208,1762869723512,-500.0,0.00039999,31]
[393635209,1762869723544,-500.0,0.00039999,31]
[393635210,1762869723575,-500.0,0.00039999,31]
[393635211,1762869723607,-416.8288303,0.00039999,31]
[393635212,1762869723637,-500.0,0.0004,120]
[393635213,1762869723665,-544.87747677,0.0004,120]
[393635214,1762869723695,-200.0,0.0004,120]
[393635215,1762869723723,-162.6639,0.0004,120]
[393635216,1762869723751,-4895.38042714,0.0004,30]
[393635217,1762869723779,-11578.31450534,0.0004,30]
[393635218,1762869723806,-14569.79968778,0.0004,30]
[393635219,1762869723833,-280000.0,0.0004,30]
[393635220,1762869723861,-37887.66271078,0.0004,30]
[393635221,1762869723889,-715875.85277306,0.0004,30]
[393635222,1762869723917,-40882.80907694,0.0004,30]
[393635223,1762869723945,-155253.65989967,0.0004,30]
[393635224,1762869723975,-170.34381769,0.0004,30]
[393635225,1762869724006,-1486.5056423,0.0004,120]
[393635226,1762869724034,-2149.45206845,0.0004,120]
[393635227,1762869724064,-160.603281,0.0004,45]
[393635228,1762869724092,-162.393911,0.0004,45]
[393635229,1762869724122,-150.077011,0.0004,45]
[393635230,1762869724150,-163.60028,0.0004,45]
[393635231,1762869724178,-165.740319,0.0004,45]
[393635232,1762869724206,-158.366163,0.0004,45]
[393635233,1762869724234,-156.261997,0.0004,45]
[393635234,1762869724264,-151.44337,0.0004,45]
[393635235,1762869724294,-213.82,0.0004,120]
[393635236,1762869724325,-573.22,0.0004,120]
[393635237,1762869724353,-186.56,0.0004,120]
[393635238,1762869724381,-534.12,0.0004,120]
[393635239,1762869724412,-459.02,0.00040015,120]
[393635240,1762869724442,-1373.75,0.00040015,120]
[393635241,1762869724472,-151.0,0.00040015,120]
[393635242,1762869724502,-1242.0,0.00040015,120]
[393635243,1762869724531,-151.0,0.00040015,120]
[393635244,1762869724559,-1242.0,0.00040015,120]
[393635245,1762869724588,-827.0,0.00040015,120]
[393635246,1762869724617,-151.0,0.00040015,120]
[393635247,1762869724645,-1242.0,0.00040015,120]
[393635248,1762869724675,-634.38718011,0.00040015,120]
[393635249,1762869724705,-151.0,0.00040015,120]
[393635250,1762869724734,-1242.0,0.00040015,120]
[393635251,1762869724765,-151.0,0.00040015,120]
[393635252,1762869724795,-1242.0,0.00040015,120]
[393635253,1762869724824,-151.0,0.00040015,120]
[393635254,1762869724853,-152.0,0.00040015,120]
[393635255,1762869724884,-151.0,0.00040015,120]
[393635256,1762869724915,-1242.0,0.00040015,120]
[393635257,1762869724946,-152.0,0.00040015,120]
[393635258,1762869724980,-151.0,0.00040015,120]
[393635259,1762869725011,-1242.0,0.00040015,120]
[393635260,1762869725039,-152.0,0.00040015,120]
[393635261,1762869725069,-152.0,0.00040015,120]
[393635262,1762869725099,-151.0,0.00040015,120]
[393635263,1762869725128,-152.0,0.00040015,120]
[393635264,1762869725158,-1242.0,0.00040015,120]
[393635265,1762869725188,-152.0,0.00040015,120]
[393635266,1762869725216,-151.0,0.00040015,120]
[393635267,1762869725246,-1242.0,0.00040015,120]
[393635268,1762869725274,-152.0,0.00040015,120]
[393635269,1762869725303,-152.0,0.00040015,120]
[393635270,1762869725331,-151.0,0.00040015,120]
[393635271,1762869725359,-1242.0,0.00040015,120]
[393635272,1762869725388,-152.0,0.00040015,120]
[393635273,1762869725416,-152.0,0.00040015,120]
[393635274,1762869725445,-151.0,0.00040015,120]
[393635275,1762869725474,-1242.0,0.00040015,120]
[393635276,1762869725503,-152.0,0.00040015,120]
[393635277,1762869725532,-152.0,0.00040015,120]
[393635278,1762869725562,-151.0,0.00040015,120]
[393635279,1762869725590,-1242.0,0.00040015,120]
[393635280,1762869725619,-152.0,0.00040015,120]
[393635281,1762869725649,-151.0,0.00040015,120]
[393635282,1762869725678,-152.0,0.00040015,120]
[393635283,1762869725709,-152.0,0.00040015,120]
[393635284,1762869725739,-1242.0,0.00040015,120]
[393635285,1762869725769,-151.0,0.00040015,120]
[393635286,1762869725799,-152.0,0.00040015,120]
[393635287,1762869725827,-152.0,0.00040015,120]
[393635288,1762869725855,-1242.0,0.00040015,120]
[393635289,1762869726013,-151.0,0.00040015,120]
[393635290,1762869726045,-152.0,0.00040015,120]
[393635291,1762869726075,-152.0,0.00040015,120]
[393635292,1762869726104,-1242.0,0.00040015,120]
[393635293,1762869726132,-152.0,0.00040015,120]
[393635294,1762869726160,-152.0,0.00040015,120]
[393635295,1762869726197,-151.0,0.00040015,120]
[393635296,1762869726228,-1242.0,0.00040015,120]
[393635297,1762869726259,-151.16701834,0.00040015,120]
[393635298,1762869726288,-152.0,0.00040015,120]
[393635299,1762869726317,-151.0,0.00040015,120]
[393635300,1762869726349,-1242.0,0.00040015,120]
[393635301,1762869726381,-152.0,0.00040015,120]
[393635302,1762869726412,-151.0,0.00040015,120]
[393635303,1762869726446,-1242.0,0.00040015,120]
[393635304,1762869726477,-152.0,0.00040015,120]
[393635305,1762869726508,-151.0,0.00040015,120]
[393635306,1762869726542,-1242.0,0.00040015,120]
[393635307,1762869726572,-152.0,0.00040015,120]
[393635308,1762869726602,-151.0,0.00040015,120]
[393635309,1762869726633,-1242.0,0.00040015,120]
[393635310,1762869726663,-151.0,0.00040015,120]
[393635311,1762869726695,-152.0,0.00040015,120]
[393635312,1762869726728,-1242.0,0.00040015,120]
[393635313,1762869726760,-151.0,0.00040015,120]
[393635314,1762869726791,-152.0,0.00040015,120]
[393635315,1762869726821,-1242.0,0.00040015,120]
[393635316,1762869726852,-151.0,0.00040015,120]
[393635317,1762869726886,-151.0,0.00040015,120]
[393635318,1762869726919,-1242.0,0.00040015,120]
[393635319,1762869726949,-151.0,0.00040015,120]
[393635320,1762869726985,-1242.0,0.00040015,120]
[393635321,1762869727019,-151.0,0.00040015,120]
[393635322,1762869727052,-152.0,0.00040015,120]
[393635323,1762869727084,-1242.0,0.00040015,120]
[393635324,1762869727115,-151.0,0.00040015,120]
[393635325,1762869727145,-152.0,0.00040015,120]
[393635326,1762869727176,-1242.0,0.00040015,120]
[393635327,1762869727210,-152.0,0.00040015,120]
[393635328,1762869727240,-1242.0,0.00040015,120]
[393635329,1762869727271,-151.0,0.00040015,120]
[393635330,1762869727301,-152.0,0.00040015,120]
[393635331,1762869727331,-1242.0,0.00040015,120]
[393635332,1762869727360,-151.0,0.00040015,120]
[393635333,1762869727389,-152.0,0.00040015,120]
[393635334,1762869727419,-1242.0,0.00040015,120]
[393635335,1762869727449,-151.0,0.00040015,120]
[393635336,1762869727478,-221.25242395,0.00040015,120]
[393635337,1762869727509,-1242.0,0.00040015,120]
[393635338,1762869727540,-151.0,0.00040015,120]
[393635339,1762869727571,-1242.0,0.00040015,120]
[393635340,1762869727601,-151.0,0.00040015,120]
[393635341,1762869727632,-1381.2519634,0.00040015,120]
[393635342,1762869727663,-151.0,0.00040015,120]
[393635343,1762869727693,-151.0,0.00040015,120]
[393635344,1762869727723,-151.0,0.00040015,120]
[393635345,1762869727753,-151.0,0.00040015,120]
[393635346,1762869727786,-250.38392195,0.00040015,120]
[393635347,1762869727816,-151.0,0.00040015,120]
[393635348,1762869727846,-151.0,0.00040015,120]
[393635349,1762869727876,-151.0,0.00040015,120]
[393635350,1762869727906,-151.0,0.00040015,120]
[393635351,1762869727935,-151.0,0.00040015,120]
[393635352,1762869727968,-151.0,0.00040015,120]
[393635353,1762869727999,-151.0,0.00040015,120]
[393635354,1762869728032,-151.0,0.00040015,120]
[393635355,1762869728063,-151.0,0.00040015,120]
[393635356,1762869728094,-155.28344094,0.00040015,120]
[393635357,1762869728124,-827.0,0.00040015,120]
[393635358,1762869728155,-827.0,0.00040015,120]
[393635359,1762869728184,-827.0,0.00040015,120]
[393635360,1762869728217,-827.0,0.00040015,120]
[393635361,1762869728249,-150.0,0.00040043,120]
[393635362,1762869728282,-1297.66,0.000401,30]
[393635363,1762869728315,-158.366163,0.00040392,60]
[393635364,1762869728346,-151.44337,0.00040392,60]
[393635365,1762869728380,-150.077011,0.00040592,60]
[393635366,1762869728412,-150.0,0.00040619,120]
[393635367,1762869728441,-1364.1318683,0.00040685,120]
[393635368,1762869728472,-40000.0,0.0004076,30]
[393635369,1762869728505,-158.366163,0.00040828,60]
[393635370,1762869728538,-151.44337,0.00040828,60]
[393635371,1762869728571,-3216.89182114,0.000409,120]
[393635372,1762869728603,-1585.67,0.00040912,120]
[393635373,1762869728634,-211.0,0.0004093,30]
[393635374,1762869728666,-10000.0,0.00041,30]
[393635375,1762869728697,-200000.0,0.00041,30]
[393635376,1762869728728,-203.0,0.00041,90]
[393635377,1762869728760,-164.0,0.00041,90]
[393635378,1762869728791,-150.0,0.00041046,120]
[393635379,1762869728821,-246.64,0.00041096,120]
[393635380,1762869728850,-150.0,0.00041097,120]
[393635381,1762869728880,-206.33121688,0.0004111,120]
[393635382,1762869728912,-160.878442,0.00041217,60]
[393635383,1762869728948,-234.893951,0.00041217,60]
[393635384,1762869728982,-152.967964,0.00041217,60]
[393635385,1762869729016,-170.393884,0.00041217,60]
[393635386,1762869729049,-150.077011,0.00041228,60]
[393635387,1762869729079,-415.88,0.00041237,30]
[393635388,1762869729111,-158.366163,0.00041264,60]
[393635389,1762869729142,-156.261997,0.00041264,60]
[393635390,1762869729174,-151.44337,0.00041264,60]
[393635391,1762869729204,-1297.66,0.000414,30]
[393635392,1762869729240,-195.0,0.00041491,120]
[393635393,1762869729408,-160.85237163,0.000415,90]
[393635394,1762869729441,-1347.0,0.000416,120]
[393635395,1762869729475,-1347.0,0.000416,120]
[393635396,1762869729507,-1347.0,0.000416,120]
[393635397,1762869729539,-150.0,0.00041632,120]
[393635398,1762869729571,-500.0,0.00041659,60]
[393635399,1762869729606,-500.0,0.00041659,60]
[393635400,1762869729645,-161.665604,0.000417,60]
[393635401,1762869729698,-158.366163,0.000417,60]
[393635402,1762869729745,-156.261997,0.000417,60]
[393635403,1762869729787,-151.44337,0.000417,60]
[393635404,1762869729825,-539.53,0.000417,90]
[393635405,1762869729861,-206.33121688,0.00041718,120]
[393635406,1762869729896,-208.72251742,0.000418,120]
[393635407,1762869729931,-211.15,0.00041852,60]
[393635408,1762869729972,-150.077011,0.00041864,60]
[393635409,1762869730007,-163.60028,0.00041864,60]
[393635410,1762869730040,-165.740319,0.00041864,60]
[393635411,1762869730074,-150.0,0.00041921,30]
[393635412,1762869730107,-150.0,0.00041921,30]
[393635413,1762869730138,-150.0,0.00041921,30]
[393635414,1762869730168,-150.0,0.00041921,30]
[393635415,1762869730206,-150.0,0.00041921,30]
[393635416,1762869730236,-150.0,0.00041921,30]
[393635417,1762869730271,-3446.0,0.00041971,120]
[393635418,1762869730303,-496.65862371,0.00041999,120]
[393635419,1762869730333,-205.48,0.00042,30]
[393635420,1762869730364,-977.8460973,0.00042,120]
[393635421,1762869730396,-1006.47162705,0.00042,120]
[393635422,1762869730428,-593.30340355,0.00042,30]
[393635423,1762869730463,-150.0,0.00042,120]
[393635424,1762869730497,-407.21411862,0.00042,120]
[393635425,1762869730530,-315.81201583,0.00042,120]
[393635426,1762869730562,-749.2629142,0.00042,30]
[393635427,1762869730595,-578.77261784,0.00042,30]
[393635428,1762869730626,-2241.0,0.00042,120]
[393635429,1762869730659,-200.0,0.00042,120]
[393635430,1762869730694,-3216.89182114,0.00042,120]
[393635431,1762869730728,-200.0,0.00042014,120]
[393635432,1762869730766,-1784.24561751,0.00042121,120]
[393635433,1762869730804,-150.0,0.00042159,120]
[393635434,1762869730842,-206.33121688,0.00042327,120]
[393635435,1762869730878,-160.878442,0.00042478,60]
[393635436,1762869730911,-234.893951,0.00042478,60]
[393635437,1762869730946,-152.967964,0.00042478,60]
[393635438,1762869730983,-170.393884,0.00042478,60]
[393635439,1762869731015,-511.24643562,0.000425,120]
[393635440,1762869731045,-489.19241238,0.000425,120]
[393635441,1762869731076,-771.59,0.000425,120]
[393635442,1762869731107,-160.603281,0.000425,60]
[393635443,1762869731137,-166.908883,0.000425,60]
[393635444,1762869731167,-160.603281,0.000425,60]
[393635445,1762869731199,-166.908883,0.000425,60]
[393635446,1762869731231,-157.114358,0.000425,60]
[393635447,1762869731260,-162.393911,0.000425,60]
[393635448,1762869731293,-150.077011,0.000425,60]
[393635449,1762869731325,-163.60028,0.000425,60]
[393635450,1762869731357,-165.740319,0.000425,60]
[393635451,1762869731388,-475.11,0.000425,120]
[393635452,1762869731417,-293.74105055,0.00042566,30]
[393635453,1762869731449,-150.0,0.00042566,30]
[393635454,1762869731480,-8823.596063,0.00042566,30]
[393635455,1762869731511,-150.0,0.00042635,120]
[393635456,1762869731542,-150.0,0.00042743,30]
[393635457,1762869731572,-150.0,0.00042743,30]
[393635458,1762869731602,-150.0,0.00042743,30]
[393635459,1762869731631,-150.0,0.00042743,30]
[393635460,1762869731662,-302.48,0.00042743,30]
[393635461,1762869731692,-296.99997591,0.00042746,60]
[393635462,1762869731722,-153.43433581,0.00042755,60]
[393635463,1762869731751,-285.40465581,0.00042755,60]
[393635464,1762869731781,-548.21406039,0.00042799,120]
[393635465,1762869731811,-199.28039857,0.00042799,120]
[393635466,1762869731840,-206.43783378,0.00042799,120]
[393635467,1762869731871,-1297.66,0.000428,30]
[393635468,1762869731900,-158.75540727,0.00042856,120]
[393635469,1762869731930,-206.33121688,0.00042936,120]
[393635470,1762869731965,-211.0,0.0004295,30]
[393635471,1762869731993,-293.99995181,0.00042965,60]
[393635472,1762869732023,-2301.10091997,0.00043,120]
[393635473,1762869732052,-1362.30099628,0.00043,120]
[393635474,1762869732083,-150.0,0.00043,120]
[393635475,1762869732111,-196.12635945,0.00043,120]
[393635476,1762869732141,-2407.23726001,0.00043,120]
[393635477,1762869732170,-178.38536755,0.00043,120]
[393635478,1762869732199,-2736.41221167,0.00043,30]
[393635479,1762869732229,-150.0,0.00043,120]
[393635480,1762869732257,-2878.60688777,0.00043,120]
[393635481,1762869732285,-203.83,0.00043014,120]
[393635482,1762869732314,-200.0,0.00043014,120]
[393635483,1762869732342,-1364.77671766,0.000431,120]
[393635484,1762869732370,-204.0,0.00043151,90]
[393635485,1762869732398,-103528.6334488,0.000432,120]
[393635486,1762869732428,-1444.8735,0.0004322,30]
[393635487,1762869732459,-293.99995181,0.00043239,60]
[393635488,1762869732489,-1358.66961629,0.0004328,120]
[393635489,1762869732521,-116114.4244,0.00043444,30]
[393635490,1762869732551,-206.33121688,0.00043545,120]
[393635491,1762869732581,-244.99995984,0.00043568,60]
[393635492,1762869732610,-538.84831656,0.000437,120]
[393635493,1762869732639,-174.29793,0.00043739,60]
[393635494,1762869732667,-166.144097,0.00043739,60]
[393635495,1762869732698,-160.878442,0.00043739,60]
[393635496,1762869732852,-161.665604,0.00043739,60]
[393635497,1762869732918,-234.893951,0.00043739,60]
[393635498,1762869732949,-152.967964,0.00043739,60]
[393635499,1762869732980,-170.393884,0.00043739,60]
[393635500,1762869733008,-211.15,0.0004379,60]
[393635501,1762869733036,-462.07562964,0.000438,120]
[393635502,1762869733064,-1048.12,0.00043863,30]
[393635503,1762869733093,-1048.12,0.00043863,30]
[393635504,1762869733122,-1048.12,0.00043863,30]
[393635505,1762869733150,-1048.12,0.00043863,30]
[393635506,1762869733180,-2880.67994473,0.00043987,120]
[393635507,1762869733213,-925.7476649,0.00043999,120]
[393635508,1762869733244,-1927.12610635,0.00044,120]
[393635509,1762869733274,-576.31665279,0.00044,120]
[393635510,1762869733303,-166.68451253,0.00044,120]
[393635511,1762869733334,-155.0,0.00044,120]
[393635512,1762869733362,-153.14,0.00044,30]
[393635513,1762869733391,-150.0,0.00044,120]
[393635514,1762869733420,-262.85273536,0.00044,120]
[393635515,1762869733450,-1063.45698295,0.00044,120]
[393635516,1762869733480,-424.89846769,0.00044,30]
[393635517,1762869733510,-153.0,0.00044,120]
[393635518,1762869733542,-502.64,0.00044,32]
[393635519,1762869733575,-200.0,0.00044,120]
[393635520,1762869733607,-5000.0,0.00044,120]
[393635521,1762869733637,-4031.69492201,0.00044,120]
[393635522,1762869733669,-200.0,0.00044014,120]
[393635523,1762869733699,-150.0,0.00044069,120]
[393635524,1762869733728,-1297.66,0.000441,30]
[393635525,1762869733756,-1048.12,0.00044137,30]
[393635526,1762869733784,-1048.12,0.00044137,30]
[393635527,1762869733811,-206.33121688,0.00044154,120]
[393635528,1762869733839,-158.35749973,0.0004425,120]
[393635529,1762869733869,-1499.999999,0.00044388,120]
[393635530,1762869733898,-1048.12,0.00044411,30]
[393635531,1762869733926,-1048.12,0.00044411,30]
[393635532,1762869733955,-210717.09820639,0.00044444,120]
[393635533,1762869733987,-824.93920676,0.000445,120]
[393635534,1762869734016,-2169.73,0.000445,30]
[393635535,1762869734044,-361.6,0.00044613,120]
[393635536,1762869734072,-1229.0752441,0.0004468,120]
[393635537,1762869734100,-1048.12,0.00044685,30]
[393635538,1762869734128,-1048.12,0.00044685,30]
[393635539,1762869734156,-153.0,0.000447,120]
[393635540,1762869734184,-206.33121688,0.00044762,120]
[393635541,1762869734214,-409.55811134,0.000448,120]
[393635542,1762869734243,-150.0,0.00044824,30]
[393635543,1762869734271,-1482.45905109,0.00044824,30]
[393635544,1762869734300,-806.25,0.00044845,120]
[393635545,1762869734328,-112000.0,0.0004486,30]
[393635546,1762869734357,-549.11529782,0.0004489,120]
[393635547,1762869734384,-958.31403754,0.000449,120]
[393635548,1762869734414,-883.40674513,0.000449,30]
[393635549,1762869734446,-11861.45,0.000449,120]
[393635550,1762869734480,-2597.0,0.000449,120]
[393635551,1762869734513,-10450.29999097,0.000449,120]
[393635552,1762869734547,-1048.12,0.00044959,30]
[393635553,1762869734582,-1048.12,0.00044959,30]
[393635554,1762869734613,-211.0,0.0004496,30]
[393635555,1762869734645,-211.0,0.0004496,30]
[393635556,1762869734676,-2989.80891532,0.0004499,120]
[393635557,1762869734708,-151.0,0.00044997,120]
[393635558,1762869734739,-1008.26056407,0.00044999,60]
[393635559,1762869734769,-701.70019644,0.00045,120]
[393635560,1762869734797,-2197.56609532,0.00045,120]
[393635561,1762869734826,-635.80063811,0.00045,120]
[393635562,1762869734854,-181.76843778,0.00045,30]
[393635563,1762869734883,-178.63958713,0.00045,120]
[393635564,1762869734915,-1833.17517726,0.00045,120]
[393635565,1762869734946,-23325.31,0.00045,120]
[393635566,1762869734981,-155.0,0.00045,120]
[393635567,1762869735010,-398.5,0.00045,120]
[393635568,1762869735041,-345.30536969,0.00045,60]
[393635569,1762869735070,-503.11186914,0.00045,30]
[393635570,1762869735097,-150.0,0.00045,120]
[393635571,1762869735125,-777.66004181,0.00045,120]
[393635572,1762869735155,-1071651.0,0.00045,120]
[393635573,1762869735183,-1000.0,0.00045,120]
[393635574,1762869735215,-945913.61334997,0.00045,120]
[393635576,1762869752297,-3301.53,0.00034012,37]
[393635577,1762869752340,-326.726,0.00034012,37]
[393635578,1762869752415,-151.0,0.00039912,120]
[393635579,1762869752445,-151.0,0.00039912,120]
[393635580,1762869752477,-151.0,0.00039912,120]
[393635581,1762869752507,-160.454295,0.00039912,120]
[393635582,1762869752535,-151.0,0.00039912,120]
[393635583,1762869752563,-151.0,0.00039912,120]
[393635584,1762869752590,-151.0,0.00039912,120]
[393635585,1762869752619,-1107.82577,0.00039912,120]
[393635586,1762869752649,-1107.82577,0.00039912,120]
[393635587,1762869752679,-1107.82577,0.00039912,120]
[393635588,1762869752709,-1107.82577,0.00039912,120]
[393635589,1762869752740,-1107.82577,0.00039912,120]
[393635590,1762869752773,-151.0,0.00039912,120]